lending/lending_fUSD_20240120
["ID","MTS","AMOUNT","RATE_DAILY","PERIOD"]
[312289438,1705745438207,-508.0,0.00025027,2]
[312289440,1705745438217,-319.0,0.00025027,2]
[312289443,1705745438227,-1114.52020719,0.00025121,28]
[312289445,1705745438237,-1327.29585238,0.000252,2]
[312289447,1705745438247,-616.41582994,0.000252,2]
[312289449,1705745438256,-478.30743253,0.000252,2]
[312289451,1705745438265,-219.53112758,0.00025201,5]
[312289453,1705745438275,-256.0,0.0002533,2]
[312289455,1705745438284,-150.99,0.0002533,2]
[312289457,1705745438293,-161.99,0.00025402,2]
[312289459,1705745438303,-170.0,0.00025441,2]
[312289461,1705745438312,-1100.5544,0.00025446,2]
[312289463,1705745438321,-155.17,0.00025447,2]
[312289465,1705745438331,-771.5502294,0.00025476,2]
[312289467,1705745438340,-165.85,0.00025495,2]
[312289469,1705745438349,-285.0,0.00025514,2]
[312289471,1705745438359,-335.34184588,0.00025545,2]
[312289473,1705745438368,-500.0,0.00025546,2]
[312289475,1705745438377,-500.0,0.00025546,2]
[312289477,1705745438386,-500.0,0.00025546,2]
[312289479,1705745438396,-500.0,0.00025546,2]
[312289481,1705745438406,-500.0,0.00025546,2]
[312289483,1705745438415,-500.0,0.00025546,2]
[312289485,1705745438425,-500.0,0.00025546,2]
[312289487,1705745438434,-500.0,0.00025546,2]
[312289489,1705745438445,-505.55399946,0.00025546,2]
[312289491,1705745438454,-500.0,0.00025546,2]
[312289493,1705745438463,-514.27,0.00025546,2]
[312289495,1705745438472,-500.0,0.00025546,2]
[312289497,1705745438486,-604.53,0.00025546,2]
[312289499,1705745438496,-500.0,0.00025546,2]
[312289501,1705745438505,-564.6348984,0.00025546,2]
[312289503,1705745438514,-500.0,0.00025546,2]
[312289505,1705745438524,-235.57496122,0.00025546,2]
[312289507,1705745438533,-500.0,0.00025546,2]
[312289509,1705745438542,-500.0,0.00025546,2]
[312289511,1705745438552,-500.0,0.00025546,2]
[312289513,1705745438561,-278.57514638,0.00025546,2]
[312289515,1705745438572,-500.0,0.00025546,2]
[312289517,1705745438581,-500.0,0.00025546,2]
[312289519,1705745438591,-500.0,0.00025546,2]
[312289521,1705745438600,-500.0,0.00025546,2]
[312289523,1705745438610,-500.0,0.00025546,2]
[312289525,1705745438620,-500.0,0.00025546,2]
[312289527,1705745438629,-519.90741871,0.00025546,2]
[312289529,1705745438638,-500.0,0.00025546,2]
[312289531,1705745438648,-500.0,0.00025546,2]
[312289533,1705745438658,-500.0,0.00025546,2]
[312289535,1705745438669,-500.0,0.00025546,2]
[312289537,1705745438680,-500.0,0.00025546,2]
[312289539,1705745438690,-500.0,0.00025546,2]
[312289541,1705745438699,-500.0,0.00025546,2]
[312289543,1705745438709,-500.0,0.00025546,2]
[312289545,1705745438719,-500.0,0.00025546,2]
[312289547,1705745438728,-500.0,0.00025546,2]
[312289549,1705745438737,-500.0,0.00025546,2]
[312289551,1705745438747,-549.7,0.00025546,2]
[312289553,1705745438757,-500.0,0.00025546,2]
[312289555,1705745438767,-509.42,0.00025546,2]
[312289557,1705745438777,-508.06361114,0.00025546,2]
[312289559,1705745438786,-500.0,0.00025546,2]
[312289561,1705745438795,-500.0,0.00025546,2]
[312289563,1705745438805,-500.0,0.00025546,2]
[312289565,1705745438814,-500.0,0.00025546,2]
[312289567,1705745438823,-500.0,0.00025546,2]
[312289569,1705745438833,-500.0,0.00025546,2]
[312289571,1705745438843,-500.0,0.00025546,2]
[312289573,1705745438853,-500.0,0.00025546,2]
[312289575,1705745438862,-500.0,0.00025546,2]
[312289577,1705745438871,-503.6672686,0.00025546,2]
[312289579,1705745438881,-500.0,0.00025546,2]
[312289581,1705745438890,-500.0,0.00025546,2]
[312289583,1705745438900,-500.0,0.00025546,2]
[312289585,1705745438911,-500.0,0.00025546,2]
[312289587,1705745438920,-500.0,0.00025546,2]
[312289589,1705745438929,-608.66,0.00025546,2]
[312289591,1705745438939,-500.0,0.00025546,2]
[312289593,1705745438948,-502.15347886,0.00025546,2]
[312289595,1705745438958,-500.0,0.00025546,2]
[312289597,1705745438967,-500.0,0.00025546,2]
[312289599,1705745438977,-500.0,0.00025546,2]
[312289601,1705745438986,-500.0,0.00025546,2]
[312289603,1705745438996,-500.0,0.00025546,2]
[312289605,1705745439006,-506.69822752,0.00025546,2]
[312289607,1705745439015,-500.0,0.00025546,2]
[312289609,1705745439025,-500.0,0.00025546,2]
[312289610,1705745439034,-500.0,0.00025546,2]
[312289611,1705745439043,-500.0,0.00025546,2]
[312289612,1705745439053,-500.0,0.00025546,2]
[312289613,1705745439063,-524.93845958,0.00025546,2]
[312289614,1705745439072,-500.0,0.00025546,2]
[312289615,1705745439081,-500.0,0.00025546,2]
[312289616,1705745439091,-500.0,0.00025546,2]
[312289617,1705745439100,-500.0,0.00025546,2]
[312289618,1705745439110,-500.0,0.00025546,2]
[312289619,1705745439119,-500.0,0.00025546,2]
[312289620,1705745439128,-500.0,0.00025546,2]
[312289621,1705745439137,-500.0,0.00025546,2]
[312289622,1705745439147,-500.0,0.00025546,2]
[312289623,1705745439159,-510.2663674,0.00025546,2]
[312289624,1705745439169,-500.0,0.00025546,2]
[312289625,1705745439179,-500.0,0.00025546,2]
[312289626,1705745439188,-500.0,0.00025546,2]
[312289627,1705745439197,-500.0,0.00025546,2]
[312289628,1705745439206,-500.0,0.00025546,2]
[312289629,1705745439216,-500.0,0.00025546,2]
[312289630,1705745439225,-500.0,0.00025546,2]
[312289631,1705745439235,-500.0,0.00025546,2]
[312289632,1705745439245,-500.0,0.00025546,2]
[312289633,1705745439256,-1008.52839716,0.00025546,7]
[312289634,1705745439265,-500.0,0.00025546,2]
[312289635,1705745439275,-500.0,0.00025546,2]
[312289636,1705745439284,-500.0,0.00025546,2]
[312289637,1705745439294,-500.0,0.00025546,2]
[312289638,1705745439304,-500.0,0.00025546,2]
[312289639,1705745439316,-500.0,0.00025546,2]
[312289640,1705745439326,-391.38482186,0.00025546,2]
[312289641,1705745439336,-830.48,0.00025546,2]
[312289642,1705745439347,-275.07711272,0.00025546,2]
[312289643,1705745439357,-500.0,0.00025546,2]
[312289644,1705745439367,-507.33589789,0.00025546,2]
[312289645,1705745439377,-500.0,0.00025546,2]
[312289646,1705745439387,-500.0,0.00025546,2]
[312289647,1705745439397,-265.91407193,0.00025546,2]
[312289648,1705745439421,-234.08592807,0.00025546,2]
[312289649,1705745439432,-312.64407192,0.00025546,2]
[312289655,1705745440203,-172.92789734,0.00023788,2]
[312289656,1705745440213,-126.720787,0.00024274,4]
[312289657,1705745440224,-307.46014093,0.00024274,4]
[312289658,1705745440408,-113.74652182,0.00024274,4]
[312289659,1705745440417,-640.07358814,0.00025546,5]
[312289660,1705745441069,-388.56448989,0.00025546,5]
[312289680,1705745442958,-248.07305957,0.00025546,5]
[312289681,1705745442967,-187.35592808,0.00025546,2]
[312289682,1705745442977,-302.94238584,0.00025546,2]
[312289683,1705745443013,-203.05438932,0.00025546,2]
[312289684,1705745443022,-500.0,0.00025546,2]
[312289685,1705745443032,-517.45677216,0.00025546,2]
[312289686,1705745443040,-79.8015751,0.00025546,2]
[312289690,1705745445813,-159.88850779,0.00025545,2]
[312289691,1705745445824,-446.46327534,0.00025545,2]
[312289692,1705745445861,-2745.27795485,0.00025545,2]
[312289693,1705745445870,-420.1984249,0.00025546,2]
[312289694,1705745445879,-500.0,0.00025546,2]
[312289695,1705745445888,-500.0,0.00025546,2]
[312289696,1705745445897,-500.0,0.00025546,2]
[312289697,1705745445906,-500.0,0.00025546,2]
[312289698,1705745445917,-500.0,0.00025546,2]
[312289699,1705745445925,-500.0,0.00025546,2]
[312289700,1705745445935,-500.0,0.00025546,2]
[312289701,1705745445944,-500.0,0.00025546,2]
[312289702,1705745445953,-500.0,0.00025546,2]
[312289703,1705745445962,-500.0,0.00025546,2]
[312289704,1705745445971,-500.0,0.00025546,2]
[312289705,1705745445981,-500.0,0.00025546,2]
[312289706,1705745445990,-510.31941381,0.00025546,2]
[312289707,1705745445999,-500.0,0.00025546,2]
[312289708,1705745446008,-500.0,0.00025546,2]
[312289709,1705745446017,-500.0,0.00025546,2]
[312289710,1705745446026,-500.0,0.00025546,2]
[312289711,1705745446036,-500.0,0.00025546,2]
[312289712,1705745446045,-281.75809235,0.00025546,2]
[312289713,1705745446054,-500.0,0.00025546,2]
[312289714,1705745446064,-500.0,0.00025546,2]
[312289715,1705745446073,-500.0,0.00025546,2]
[312289716,1705745446082,-500.0,0.00025546,2]
[312289717,1705745446091,-500.0,0.00025546,2]
[312289718,1705745446100,-526.78132274,0.00025546,2]
[312289719,1705745446110,-500.0,0.00025546,2]
[312289720,1705745446119,-500.0,0.00025546,2]
[312289721,1705745446128,-500.0,0.00025546,2]
[312289722,1705745446137,-500.0,0.00025546,2]
[312289723,1705745446146,-628.1525152,0.00025546,2]
[312289724,1705745446155,-500.0,0.00025546,2]
[312289725,1705745446165,-500.0,0.00025546,2]
[312289726,1705745446175,-500.0,0.00025546,2]
[312289727,1705745446184,-500.0,0.00025546,2]
[312289728,1705745446193,-500.0,0.00025546,2]
[312289729,1705745446203,-500.0,0.00025546,2]
[312289730,1705745446212,-511.76963303,0.00025546,2]
[312289731,1705745446221,-500.0,0.00025546,2]
[312289732,1705745446230,-500.0,0.00025546,2]
[312289733,1705745446239,-576.93357129,0.00025546,2]
[312289734,1705745446249,-500.0,0.00025546,2]
[312289735,1705745446259,-500.0,0.00025546,2]
[312289736,1705745446268,-500.0,0.00025546,2]
[312289737,1705745446278,-371.38282181,0.00025546,2]
[312289738,1705745446287,-642.05,0.00025546,2]
[312289739,1705745446296,-500.0,0.00025546,2]
[312289740,1705745446305,-520.29,0.00025546,2]
[312289741,1705745446315,-507.24406193,0.00025546,2]
[312289742,1705745446325,-500.0,0.00025546,2]
[312289743,1705745446334,-553.14783053,0.00025546,2]
[312289744,1705745446347,-500.0,0.00025546,2]
[312289745,1705745446357,-500.0,0.00025546,2]
[312289746,1705745446366,-500.0,0.00025546,2]
[312289747,1705745446375,-500.0,0.00025546,2]
[312289748,1705745446384,-500.0,0.00025546,2]
[312289749,1705745446394,-500.0,0.00025546,2]
[312289750,1705745446403,-482.54350418,0.00025546,2]
[312289751,1705745446414,-546.44,0.00025546,2]
[312289752,1705745446423,-500.0,0.00025546,2]
[312289753,1705745446432,-262.48745233,0.00025546,2]
[312289754,1705745446441,-539.81030464,0.00025546,2]
[312289755,1705745446451,-451.57389222,0.00025546,2]
[312289756,1705745446460,-299.64868434,0.00025546,2]
[312289757,1705745446469,-233.49690263,0.00025546,2]
[312289758,1705745446479,-220.35029306,0.00025546,2]
[312289759,1705745446488,-509.04953353,0.00025546,2]
[312289760,1705745446497,-530.97732234,0.00025546,2]
[312289761,1705745446507,-500.0,0.00025546,2]
[312289762,1705745446516,-500.0,0.00025546,2]
[312289763,1705745446526,-500.0,0.00025546,2]
[312289764,1705745446536,-530.64,0.00025546,2]
[312289765,1705745446546,-500.0,0.00025546,2]
[312289766,1705745446555,-4006.58,0.00025546,2]
[312289767,1705745446566,-500.0,0.00025546,2]
[312289768,1705745446575,-500.0,0.00025546,2]
[312289769,1705745446585,-1263.2,0.00025546,2]
[312289770,1705745446593,-500.0,0.00025546,2]
[312289771,1705745446603,-500.0,0.00025546,2]
[312289772,1705745446612,-500.0,0.00025546,2]
[312289773,1705745446621,-500.0,0.00025546,2]
[312289774,1705745446630,-478.88202174,0.00025546,2]
[312289776,1705745446639,-500.0,0.00025546,2]
[312289778,1705745446649,-500.0,0.00025546,2]
[312289780,1705745446658,-500.0,0.00025546,2]
[312289782,1705745446668,-500.0,0.00025546,2]
[312289783,1705745446680,-500.0,0.00025546,2]
[312289786,1705745446692,-226.21266246,0.00025546,2]
[312289788,1705745446702,-500.0,0.00025546,2]
[312289790,1705745446711,-500.0,0.00025546,2]
[312289792,1705745446720,-500.0,0.00025546,2]
[312289794,1705745446729,-500.0,0.00025546,2]
[312289796,1705745446738,-500.0,0.00025546,2]
[312289798,1705745446748,-1741.48,0.00025546,2]
[312289800,1705745446758,-3364.58,0.00025546,2]
[312289802,1705745446768,-500.0,0.00025546,2]
[312289804,1705745446777,-500.0,0.00025546,2]
[312289806,1705745446787,-500.0,0.00025546,2]
[312289808,1705745446796,-500.0,0.00025546,2]
[312289810,1705745446806,-500.0,0.00025546,2]
[312289812,1705745446815,-500.0,0.00025546,2]
[312289815,1705745446825,-500.0,0.00025546,2]
[312289817,1705745446835,-500.0,0.00025546,2]
[312289819,1705745446844,-500.0,0.00025546,2]
[312289821,1705745446854,-746.05,0.00025546,2]
[312289823,1705745446863,-500.0,0.00025546,2]
[312289825,1705745446872,-673.97,0.00025546,2]
[312289827,1705745446882,-500.0,0.00025546,2]
[312289829,1705745446891,-2079.83,0.00025546,2]
[312289831,1705745446901,-500.0,0.00025546,2]
[312289833,1705745446912,-500.0,0.00025546,2]
[312289835,1705745446923,-500.0,0.00025546,2]
[312289837,1705745446932,-500.0,0.00025546,2]
[312289839,1705745446942,-500.0,0.00025546,2]
[312289841,1705745446951,-364.44130037,0.00025546,2]
[312289845,1705745446993,-29.92241827,0.00025546,2]
[312289846,1705745447003,-500.0,0.00025546,2]
[312289847,1705745447012,-500.0,0.00025546,2]
[312289848,1705745447021,-3370.68,0.00025546,2]
[312289849,1705745447034,-536.56,0.00025546,2]
[312289851,1705745447043,-500.0,0.00025546,2]
[312289853,1705745447053,-500.0,0.00025546,2]
[312289854,1705745447063,-500.0,0.00025546,2]
[312289857,1705745447073,-500.0,0.00025546,2]
[312289859,1705745447082,-500.0,0.00025546,2]
[312289861,1705745447091,-304.56142631,0.00025546,2]
[312289863,1705745447103,-195.43857369,0.00025546,2]
[312289865,1705745447112,-500.0,0.00025546,2]
[312289867,1705745447122,-500.0,0.00025546,2]
[312289869,1705745447131,-500.0,0.00025546,2]
[312289871,1705745447140,-250.0,0.00025546,2]
[312289873,1705745447150,-500.0,0.00025546,2]
[312289875,1705745447161,-683.93,0.00025546,2]
[312289877,1705745447171,-859.55,0.00025546,2]
[312289879,1705745447181,-500.0,0.00025546,2]
[312289881,1705745447190,-431.8169537,0.00025546,2]
[312289884,1705745447206,-68.1830463,0.00025546,2]
[312289886,1705745447215,-500.0,0.00025546,2]
[312289888,1705745447224,-500.0,0.00025546,2]
[312289890,1705745447235,-668.3,0.00025546,2]
[312289891,1705745447245,-575.3,0.00025546,2]
[312289893,1705745447254,-500.0,0.00025546,2]
[312289894,1705745447264,-500.0,0.00025546,2]
[312289895,1705745447273,-500.0,0.00025546,2]
[312289896,1705745447283,-500.0,0.00025546,2]
[312289897,1705745447293,-500.0,0.00025546,2]
[312289898,1705745447303,-500.0,0.00025546,2]
[312289899,1705745447313,-500.0,0.00025546,2]
[312289900,1705745447322,-754.23,0.00025546,2]
[312289901,1705745447332,-714.14,0.00025546,2]
[312289902,1705745447342,-500.0,0.00025546,2]
[312289903,1705745447351,-500.0,0.00025546,2]
[312289904,1705745447360,-500.0,0.00025546,2]
[312289905,1705745447369,-1369.43,0.00025546,2]
[312289906,1705745447379,-428.10068396,0.00025546,2]
[312289907,1705745447389,-893.94,0.00025546,2]
[312289908,1705745447399,-500.0,0.00025546,2]
[312289909,1705745447409,-500.0,0.00025546,2]
[312289910,1705745447420,-500.0,0.00025546,2]
[312289911,1705745447431,-1643.68,0.00025546,2]
[312289912,1705745447441,-446.69626991,0.00025546,2]
[312289913,1705745447454,-53.30373009,0.00025546,2]
[312289914,1705745447466,-203.98244226,0.00025546,2]
[312289915,1705745447489,-727.00300268,0.00025546,2]
[312289916,1705745489704,100000.0,0.00035121,30]
[312289917,1705745490287,5800.0,0.00018695,2]
[312289975,1705746484523,206.0,0.0002089,2]
[312289977,1705746542315,300.0,0.0003,120]
[312289980,1705746631970,-412.42067387,0.00021873,2]
[312289981,1705746631981,-89.82331638,0.00021999,2]
[312289982,1705746632010,-65.17668362,0.00021999,2]
[312289983,1705746632020,-393.05108638,0.00022,3]
[312289984,1705746632034,-856.94891362,0.00022,3]
[312289985,1705746632045,-412.78,0.00022221,2]
[312289986,1705746632056,-5393.51255499,0.00023753,2]
[312289987,1705746632075,-4606.48744501,0.00023753,2]
[312289988,1705746632085,-214.99101618,0.00023811,2]
[312289989,1705746632137,-925.64547737,0.00023811,2]
[312289999,1705746637926,-504.21309168,0.00023811,2]
[312290000,1705746638035,-355.15041477,0.00023811,2]
[312290001,1705746638044,-167.08,0.0002393,2]
[312290002,1705746638053,-249.4,0.00023951,2]
[312290003,1705746638064,-152.8556292,0.00023957,2]
[312290004,1705746638185,-1824.56222387,0.00023957,2]
[312290005,1705746638208,-12161.39214693,0.00023957,2]
[312290006,1705746638217,-1466.26341923,0.00024,2]
[312290007,1705746638227,-442.83,0.0002408,2]
[312290008,1705746638237,-941.49,0.00024089,2]
[312290009,1705746638246,-250.0,0.00024093,2]
[312290010,1705746638255,-557.17,0.00024137,2]
[312290011,1705746638265,-172.52,0.00024216,2]
[312290012,1705746638274,-158.48,0.00024342,2]
[312290013,1705746638283,-412.78,0.00024485,2]
[312290014,1705746638292,-166.07,0.0002456,2]
[312290015,1705746638302,-255.79555639,0.00024625,3]
[312290016,1705746638311,-250.0,0.00024658,2]
[312290017,1705746638320,-157.61,0.00024743,2]
[312290018,1705746638329,-220.33,0.00024754,2]
[312290019,1705746638338,-158.48,0.0002476,2]
[312290020,1705746638347,-9177.89329728,0.000248,2]
[312290021,1705746638359,-2966.31717567,0.000248,2]
[312290022,1705746638371,-399.13216622,0.000248,2]
[312290046,1705746642828,-403.47012699,0.000248,2]
[312290052,1705746642888,-9066.18723384,0.000248,2]
[312290055,1705746642898,-59813.141413,0.000248,2]
[312290057,1705746642909,-887.01277918,0.0002498,4]
[312290059,1705746642920,-941.49,0.0002498,2]
[312290061,1705746642932,-6590.2662784,0.00024999,2]
[312290063,1705746642999,-83129.4458416,0.00024999,2]
[312290064,1705746643012,-3000.0,0.00025,3]
[312290065,1705746643023,-2557.03818955,0.00025,3]
[312290066,1705746643037,-442.96181045,0.00025,3]
[312290067,1705746643047,-158.48,0.00025177,2]
[312290068,1705746643058,-1687.97,0.000252,2]
[312290069,1705746643071,-762.14629524,0.00025211,2]
[312290070,1705746643111,-120.16370476,0.00025211,2]
[312290071,1705746643122,-8483.43629524,0.00025419,2]
[312290072,1705746643134,-2528.70970476,0.00025419,2]
[312290073,1705746643144,-1127.141,0.00025419,2]
[312290074,1705746643157,-612.461,0.00025419,2]
[312290075,1705746643169,-319.0,0.00025419,2]
[312290076,1705746643179,-435.60124428,0.00025454,2]
[312290078,1705746643584,-808.20018934,0.00025454,2]
[312290079,1705746643596,-1744.0,0.000255,2]
[312290080,1705746643608,-500.0,0.00025543,2]
[312290081,1705746643619,-500.0,0.00025543,2]
[312290082,1705746643631,-500.0,0.00025543,2]
[312290083,1705746643642,-304.20615048,0.00025544,2]
[312290084,1705746643653,-500.0,0.00025544,2]
[312290085,1705746643664,-500.0,0.00025544,2]
[312290086,1705746643673,-500.0,0.00025544,2]
[312290087,1705746643683,-500.0,0.00025544,2]
[312290088,1705746643693,-500.0,0.00025544,2]
[312290091,1705746643703,-500.0,0.00025544,2]
[312290093,1705746643713,-500.0,0.00025544,2]
[312290095,1705746643723,-500.0,0.00025544,2]
[312290097,1705746643733,-500.0,0.00025544,2]
[312290099,1705746643744,-722.8,0.00025544,2]
[312290101,1705746643755,-500.0,0.00025544,2]
[312290104,1705746643766,-500.0,0.00025544,2]
[312290106,1705746643777,-900.4,0.00025544,2]
[312290107,1705746643787,-500.0,0.00025544,2]
[312290108,1705746643797,-500.0,0.00025544,2]
[312290109,1705746643808,-500.0,0.00025544,2]
[312290110,1705746643818,-648.47,0.00025544,2]
[312290111,1705746643829,-3839.64,0.00025544,2]
[312290112,1705746643839,-2033.37428181,0.00025544,5]
[312290113,1705746643850,-12335.91612,0.00025545,2]
[312290114,1705746643860,-3869.66243357,0.00025545,2]
[312290115,1705746643870,-6572.48304117,0.00025545,2]
[312290116,1705746643882,-248.66279264,0.00025545,2]
[312290117,1705746643892,-223.28488968,0.00025545,2]
[312290118,1705746643904,-150.01,0.00025545,2]
[312290119,1705746643918,-3297.48423607,0.00025545,2]
[312290120,1705746643928,-12240.31559135,0.00025545,2]
[312290121,1705746643939,-207.82039875,0.00025545,2]
[312290122,1705746643950,-500.0,0.00025546,2]
[312290123,1705746643962,-500.0,0.00025546,2]
[312290124,1705746643973,-383.44,0.00025546,2]
[312290125,1705746643983,-795.88,0.00025546,2]
[312290126,1705746643993,-180.02,0.00025546,2]
[312290127,1705746644003,-500.0,0.00025546,2]
[312290128,1705746644014,-500.0,0.00025546,2]
[312290129,1705746644024,-500.0,0.00025546,2]
[312290130,1705746644034,-50000.0,0.00025547,2]
[312290131,1705746644044,-150.0,0.00025554,2]
[312290132,1705746644054,-302.19373493,0.00025573,2]
[312290133,1705746644066,-3694.61341262,0.00025574,2]
[312290134,1705746644079,-158.48,0.00025594,2]
[312290135,1705746644089,-249.4,0.00025594,2]
[312290136,1705746644100,-1668.92,0.00025817,2]
[312290137,1705746644110,-645.89,0.00025817,2]
[312290138,1705746644120,-3230.23,0.00025817,2]
[312290139,1705746644130,-500.0,0.00025817,2]
[312290140,1705746644141,-500.0,0.00025817,2]
[312290141,1705746644152,-500.0,0.00025817,2]
[312290142,1705746644163,-500.0,0.00025817,2]
[312290143,1705746644174,-617.52084556,0.00025817,2]
[312290144,1705746644184,-500.0,0.00025817,2]
[312290145,1705746644194,-1312.38,0.00025817,2]
[312290146,1705746644204,-1575.19,0.00025817,2]
[312290147,1705746644214,-500.0,0.00025817,2]
[312290148,1705746644225,-500.0,0.00025817,2]
[312290149,1705746644235,-159.75622715,0.00025817,2]
[312290150,1705746644245,-500.0,0.00025817,2]
[312290151,1705746644255,-500.0,0.00025818,2]
[312290152,1705746644265,-500.0,0.00025818,2]
[312290153,1705746644276,-500.0,0.00025818,2]
[312290154,1705746644285,-498.8942084,0.00025818,2]
[312290155,1705746644296,-500.0,0.00025818,2]
[312290156,1705746644306,-500.0,0.00025818,2]
[312290157,1705746644316,-500.0,0.00025818,2]
[312290158,1705746644326,-150.73328466,0.00025818,2]
[312290159,1705746644336,-150.0,0.00025818,2]
[312290160,1705746644346,-500.0,0.00025818,2]
[312290161,1705746644356,-500.0,0.00025818,2]
[312290162,1705746644366,-508.53,0.00025818,2]
[312290163,1705746644377,-1210.57,0.00025818,2]
[312290164,1705746644386,-500.0,0.00025818,2]
[312290165,1705746644396,-500.0,0.00025818,2]
[312290166,1705746644406,-500.0,0.00025818,2]
[312290167,1705746644417,-500.0,0.00025818,2]
[312290168,1705746644427,-500.0,0.00025818,2]
[312290169,1705746644437,-500.0,0.00025818,2]
[312290170,1705746644449,-500.0,0.00025818,2]
[312290171,1705746644461,-500.0,0.00025818,2]
[312290172,1705746644471,-500.0,0.00025818,2]
[312290173,1705746644481,-500.0,0.00025818,2]
[312290174,1705746644491,-500.0,0.00025818,2]
[312290175,1705746644501,-500.0,0.00025818,2]
[312290176,1705746644512,-500.0,0.00025818,2]
[312290177,1705746644522,-500.0,0.00025818,2]
[312290178,1705746644533,-2087.71,0.00025818,2]
[312290179,1705746644543,-714.97,0.00025818,2]
[312290180,1705746644553,-500.0,0.00025818,2]
[312290181,1705746644564,-500.0,0.00025818,2]
[312290182,1705746644574,-500.0,0.00025818,2]
[312290183,1705746644585,-500.0,0.00025818,2]
[312290184,1705746644595,-500.0,0.00025818,2]
[312290185,1705746644605,-500.0,0.00025818,2]
[312290186,1705746644616,-500.0,0.00025818,2]
[312290187,1705746644626,-500.0,0.00025818,2]
[312290188,1705746644637,-500.0,0.00025818,2]
[312290189,1705746644647,-500.0,0.00025818,2]
[312290190,1705746644659,-500.0,0.00025818,2]
[312290191,1705746644669,-500.0,0.00025818,2]
[312290192,1705746644679,-500.0,0.00025818,2]
[312290193,1705746644690,-823.74,0.00025818,2]
[312290194,1705746644700,-500.0,0.00025818,2]
[312290195,1705746644711,-500.0,0.00025818,2]
[312290196,1705746644721,-500.0,0.00025818,2]
[312290197,1705746644731,-500.0,0.00025818,2]
[312290198,1705746644741,-500.0,0.00025818,2]
[312290199,1705746644751,-640.46,0.00025818,2]
[312290200,1705746644762,-500.0,0.00025818,2]
[312290201,1705746644772,-683.22,0.00025818,2]
[312290202,1705746644782,-722.8,0.00025818,2]
[312290203,1705746644793,-500.0,0.00025818,2]
[312290204,1705746644803,-655.43,0.00025818,2]
[312290205,1705746644813,-684.38,0.00025818,2]
[312290206,1705746644823,-500.0,0.00025818,2]
[312290207,1705746644833,-500.0,0.00025818,2]
[312290208,1705746644844,-500.0,0.00025818,2]
[312290209,1705746644854,-856.7,0.00025818,2]
[312290210,1705746644864,-500.0,0.00025818,2]
[312290211,1705746644874,-500.0,0.00025818,2]
[312290212,1705746644884,-500.0,0.00025818,2]
[312290213,1705746644894,-900.4,0.00025818,2]
[312290214,1705746644904,-500.0,0.00025818,2]
[312290215,1705746644914,-500.0,0.00025818,2]
[312290216,1705746644924,-500.0,0.00025818,2]
[312290217,1705746644933,-500.0,0.00025818,2]
[312290218,1705746644944,-258.03900375,0.00025818,2]
[312290219,1705746644955,-500.0,0.00025818,2]
[312290220,1705746644966,-500.0,0.00025818,2]
[312290221,1705746644976,-500.0,0.00025818,2]
[312290222,1705746644986,-158.34334906,0.00025818,2]
[312290223,1705746644996,-500.0,0.00025818,2]